bitfinex/quotes_ETHUSD_20240910
["timestamp","ask_amount","ask_price","bid_price","bid_amount"]
[1726006337500,2.4181,2385.1,2384.6,1.98895004]
[1726006337972,2.4181,2385.1,2384.6,5.94146622]
[1726006338173,2.4181,2385.1,2384.7,0.4315086]
[1726006338386,2.4181,2385.1,2384.8,3.95251618]
[1726006339098,2.4181,2385.1,2384.7,1.3512783]
[1726006339313,2.4181,2385.1,2384.7,0.9197697]
[1726006343695,2.4181,2384.9,2384.5,3.0]
[1726006343895,2.4181,2384.9,2384.4,0.0262699]
[1726006345447,0.55,2384.8,2384.4,0.0262699]
[1726006345655,2.4181,2384.7,2384.4,0.0262699]
[1726006346004,0.55,2384.6,2384.4,0.0262699]
[1726006347175,2.4777,2384.5,2384.4,0.0262699]
[1726006347347,3.0277,2384.5,2384.4,0.0262699]
[1726006351370,3.33047,2384.5,2384.4,0.0262699]
[1726006353533,11.71797,2384.5,2384.4,0.0262699]
[1726006359576,2.4777,2384.5,2384.4,0.0262699]
[1726006359885,2.4777,2385.3,2384.4,0.0262699]
[1726006360091,2.4777,2385.3,2384.5,2.4165]
[1726006360386,2.4777,2385.3,2384.6,3.95251618]
[1726006360540,2.4777,2385.3,2384.7,0.64528857]
[1726006360740,2.4777,2385.5,2384.7,0.64528857]
[1726006362976,0.55,2385.4,2384.7,0.64528857]
[1726006364580,0.55,2385.4,2384.6,3.0]
[1726006364754,0.55,2385.4,2384.5,2.4165]
[1726006365681,4.19279,2385.1,2384.4,3.0262699]
[1726006365881,2.255,2384.9,2384.4,0.0262699]
[1726006366097,0.55,2384.8,2384.4,0.0262699]
[1726006367699,4.74334,2384.8,2384.4,0.0262699]
[1726006369821,2.255,2384.9,2384.4,0.0262699]
[1726006370100,7.48812962,2384.9,2384.4,0.0262699]
[1726006370957,0.55,2384.8,2384.4,0.0262699]
[1726006371160,4.74325,2384.8,2384.4,0.0262699]
[1726006371398,0.55,2384.8,2384.4,0.0262699]
[1726006371603,1.35381296,2384.8,2384.4,0.0262699]
[1726006374189,0.55,2384.8,2384.4,0.0262699]
[1726006379666,4.74322,2384.8,2384.4,0.0262699]
[1726006381275,0.55,2384.8,2384.4,0.0262699]
[1726006382617,4.74324,2384.8,2384.4,0.0262699]
[1726006383172,4.19368,2384.6,2384.4,0.0262699]
[1726006383396,0.969368,2384.5,2384.4,0.0262699]
[1726006385113,3.236068,2384.5,2384.4,0.0262699]
[1726006385481,7.429818,2384.5,2384.4,0.0262699]
[1726006386095,11.623568,2384.5,2384.4,0.0262699]
[1726006386479,7.429818,2384.5,2384.4,0.0262699]
[1726006390822,2.19406906,2384.7,2384.4,0.0262699]
[1726006391044,0.02,2385.2,2384.7,2.3146]
[1726006391318,2.19406906,2385.5,2385.1,3.95251618]
[1726006391319,0.02,2385.5,2385.1,3.95251618]
[1726006391483,0.02,2385.9,2385.2,2.3146]
[1726006391683,0.02,2385.9,2385.3,0.62671162]
[1726006392814,0.02,2385.9,2385.2,2.3146]
[1726006394929,0.55,2386.0,2385.2,2.3146]
[1726006395745,4.74111,2386.0,2385.2,2.3146]
[1726006397338,4.19136,2385.9,2385.2,2.3146]
[1726006397540,1.443247,2385.8,2385.2,2.3146]
[1726006402312,0.55,2385.8,2385.2,2.3146]
[1726006403638,0.55,2385.9,2385.2,2.3146]
[1726006406965,4.74131,2385.9,2385.2,2.3146]
[1726006412342,0.55,2385.9,2385.2,2.3146]
[1726006412658,2.179209,2385.9,2385.2,2.3146]
[1726006421470,6.370509,2385.9,2385.2,2.3146]
[1726006423280,4.19114,2386.0,2385.2,2.3146]
[1726006423281,0.02,2386.0,2385.3,3.95251618]
[1726006423488,0.02,2386.0,2385.9,2.4438]
[1726006423777,0.02,2386.2,2385.9,5.95870806]
[1726006423933,0.02,2386.2,2386.1,6.39631618]
[1726006424130,0.02,2386.2,2386.1,9.91121641]
[1726006425079,0.02,2386.2,2386.1,9.48012546]
[1726006425259,0.02,2386.2,2386.1,10.49210117]
[1726006427877,0.0462699,2386.3,2386.1,8.04830117]
[1726006428193,0.0462699,2386.3,2386.2,2.4438]
[1726006430373,0.0462699,2386.3,2386.2,2.52760821]
[1726006430681,0.0262699,2386.8,2386.3,2.4438]
[1726006430859,0.0262699,2386.8,2386.7,3.95251618]
[1726006431066,0.0262699,2386.8,2386.7,9.39631618]
[1726006431295,0.0262699,2386.8,2386.7,10.3359478]
[1726006442921,0.0262699,2386.8,2386.7,3.93963162]
[1726006443126,0.0262699,2386.8,2386.5,6.95251618]
[1726006443417,0.0262699,2386.8,2386.7,6.44061618]
[1726006443821,0.0262699,2386.8,2386.7,9.44061618]
[1726006445429,0.0262699,2386.8,2386.7,3.0]
[1726006445583,0.0262699,2386.8,2386.7,0.69525162]
[1726006445991,0.0262699,2386.8,2386.7,4.6477678]
[1726006446196,0.0262699,2386.8,2386.7,3.69525162]
[1726006446589,0.0262699,2386.8,2386.7,0.69525162]
[1726006450640,0.0262699,2386.8,2386.7,3.18335162]
[1726006450790,0.0262699,2386.8,2386.7,6.18335162]
[1726006458054,0.0262699,2386.8,2386.7,3.69525162]
[1726006459614,0.0262699,2386.8,2386.7,0.69525162]
[1726006462335,0.0262699,2386.8,2386.6,3.0]
[1726006462734,0.0262699,2386.8,2386.5,2.44899434]
[1726006463674,0.0262699,2386.8,2386.5,6.40151052]
[1726006463843,0.0262699,2386.8,2386.6,3.0]
[1726006464247,0.0262699,2386.8,2386.6,4.82284278]
[1726006465137,0.0262699,2386.8,2386.6,3.0]
[1726006465333,0.0262699,2386.8,2386.4,4.90663933]
[1726006465603,0.0262699,2386.8,2386.4,5.32544361]
[1726006465935,0.0262699,2386.8,2386.6,1.82284278]
[1726006467347,0.0262699,2386.8,2386.4,4.90663933]
[1726006468074,0.0262699,2386.8,2386.4,1.82284278]
[1726006468661,0.0262699,2386.8,2386.4,4.82284278]
[1726006469376,0.0262699,2386.8,2386.5,0.98569787]
[1726006469545,0.0262699,2386.8,2386.5,3.0]
[1726006469951,0.0262699,2386.8,2386.4,4.82284278]
[1726006470147,0.0262699,2386.8,2386.5,0.98569981]
[1726006470349,0.0262699,2386.8,2386.5,3.0]
[1726006470577,0.0262699,2386.8,2386.4,4.82284278]
[1726006470885,0.0262699,2386.8,2386.5,0.98536656]
[1726006471176,0.32395689,2386.8,2386.4,3.0]
[1726006471360,0.55,2386.7,2386.4,1.47817513]
[1726006471572,0.55,2386.7,2386.3,3.87389851]
[1726006471573,0.55,2386.7,2386.3,3.0]
[1726006471767,0.55,2386.7,2386.4,0.98556839]
[1726006471946,0.55,2386.7,2386.3,3.0]
[1726006472140,0.55,2386.7,2386.4,0.98556804]
[1726006472339,0.55,2386.7,2386.3,3.0]
[1726006472647,0.55,2386.7,2386.4,0.98582357]
[1726006472858,0.55,2386.7,2386.3,3.0]
[1726006473069,0.55,2386.7,2386.4,0.986005]
[1726006473273,0.55,2386.7,2386.3,3.0]
[1726006473496,0.55,2386.7,2386.4,0.98599566]
[1726006473689,0.55,2386.7,2386.3,3.0]
[1726006473905,0.0262699,2386.8,2386.6,2.3088]
[1726006474043,0.0262699,2386.8,2386.7,0.08378508]
[1726006474245,0.0262699,2386.8,2386.7,2.53327622]
[1726006474492,0.0262699,2386.8,2386.7,6.5173837]
[1726006474994,0.0262699,2386.8,2386.7,6.43359862]
[1726006476150,0.0262699,2386.8,2386.7,4.61075584]
[1726006476353,0.0262699,2386.8,2386.7,6.08750059]
[1726006476741,0.0262699,2386.8,2386.7,4.61075584]
[1726006479104,0.0262699,2386.8,2386.7,1.61075584]
[1726006482796,0.0262699,2386.8,2386.7,1.61157909]
[1726006484484,0.0262699,2386.8,2386.6,3.0]
[1726006484870,0.0262699,2386.8,2386.5,3.87389851]
[1726006485091,0.0262699,2386.8,2386.6,2.46263563]
[1726006485276,0.5762699,2386.8,2386.6,3.0]
[1726006485574,0.5762699,2386.8,2386.5,0.87389851]
[1726006485781,0.5762699,2386.8,2386.6,2.4627344]
[1726006486108,0.5762699,2386.8,2386.6,3.0]
[1726006486305,0.5762699,2386.8,2386.5,3.87389851]
[1726006486609,0.5762699,2386.8,2386.6,2.46271966]
[1726006486781,0.5762699,2386.8,2386.6,3.0]
[1726006486983,0.5762699,2386.8,2386.4,3.95769515]
[1726006487308,0.5762699,2386.8,2386.5,2.46267928]
[1726006487485,0.5762699,2386.8,2386.6,2.462693]
[1726006487804,0.5762699,2386.8,2386.5,3.87389851]
[1726006488005,0.5762699,2386.8,2386.6,2.46270483]
[1726006488205,0.5762699,2386.8,2386.6,3.0]
[1726006488504,0.5762699,2386.8,2386.5,3.87389851]
[1726006488713,0.5762699,2386.8,2386.6,2.46273783]
[1726006488917,0.5762699,2386.8,2386.5,1.37280051]
[1726006489113,0.5762699,2386.8,2386.6,2.46275223]
[1726006489413,0.5762699,2386.8,2386.6,3.0]
[1726006489615,0.5762699,2386.8,2386.5,1.37280051]
[1726006489774,0.5762699,2386.8,2386.6,2.46264597]
[1726006490113,0.5762699,2386.8,2386.6,3.0]
[1726006490409,0.5762699,2386.8,2386.5,4.37280051]
[1726006490612,0.5762699,2386.8,2386.6,2.46262942]
[1726006490776,0.5762699,2386.8,2386.6,3.0]
[1726006490977,0.5762699,2386.8,2386.5,1.37280051]
[1726006491192,0.5762699,2386.8,2386.6,2.46249415]
[1726006491401,0.5762699,2386.8,2386.6,3.0]
[1726006491790,0.5762699,2386.8,2386.5,0.498902]
[1726006492114,0.5762699,2386.8,2386.6,0.9848088]
[1726006492314,0.5762699,2386.8,2386.5,3.498902]
[1726006492513,0.5762699,2386.8,2386.6,0.98480172]
[1726006492712,0.5762699,2386.8,2386.5,3.498902]
[1726006492888,0.5762699,2386.8,2386.6,0.98479797]
[1726006493091,0.5762699,2386.8,2386.5,3.498902]
[1726006493293,0.5762699,2386.8,2386.6,3.98479793]
[1726006493480,0.5762699,2386.8,2386.5,0.498902]
[1726006493688,0.5762699,2386.8,2386.6,0.9847786]
[1726006493892,0.5762699,2386.8,2386.5,3.498902]
[1726006494116,0.5762699,2386.8,2386.6,0.98477283]
[1726006494427,0.5762699,2386.8,2386.5,3.498902]
[1726006494589,0.5762699,2386.8,2386.6,0.9847681]
[1726006494911,0.5762699,2386.8,2386.5,3.498902]
[1726006495103,0.5762699,2386.8,2386.6,0.98467866]
[1726006495306,0.5762699,2386.8,2386.5,3.498902]
[1726006495511,0.5762699,2386.8,2386.6,0.98459747]
[1726006495830,0.5762699,2386.8,2386.5,3.0]
[1726006496126,0.5762699,2386.8,2386.6,0.98462438]
[1726006496299,0.5762699,2386.8,2386.4,3.87389851]
[1726006496509,0.5762699,2386.8,2386.5,2.46154048]
[1726006496698,0.5762699,2386.8,2386.6,0.98461619]
[1726006496904,0.5762699,2386.8,2386.5,3.0]
[1726006497119,0.5762699,2386.8,2386.6,0.98472606]
[1726006497328,0.5762699,2386.8,2386.4,3.87389851]
[1726006497624,0.5762699,2386.8,2386.5,2.46282122]
[1726006497837,0.5762699,2386.8,2386.6,0.98512849]
[1726006498006,0.5762699,2386.8,2386.4,3.87389851]
[1726006498202,0.5762699,2386.8,2386.5,2.46341915]
[1726006498417,2.2739,2386.7,2386.4,0.87389851]
[1726006498617,0.87409689,2386.8,2386.5,0.98544615]
[1726006498817,0.5762699,2386.8,2386.3,1.37854952]
[1726006499033,0.5762699,2386.8,2386.4,3.33759443]
[1726006499237,0.5762699,2386.8,2386.5,2.46369592]
[1726006499537,0.5762699,2386.8,2386.4,0.87389851]
[1726006499688,0.5762699,2386.8,2386.5,2.4636198]
[1726006499888,0.5762699,2386.8,2386.4,0.87389851]
[1726006500128,0.5762699,2386.8,2386.5,2.46362477]
[1726006500426,0.5762699,2386.8,2386.4,0.87389851]
[1726006500644,0.5762699,2386.8,2386.5,2.46366887]
[1726006500793,0.5762699,2386.8,2386.4,0.87389851]
[1726006500993,0.5762699,2386.8,2386.5,2.46399477]
[1726006501218,0.5762699,2386.8,2386.4,0.87389851]
[1726006501536,0.5762699,2386.8,2386.5,2.46399617]
[1726006501703,0.5762699,2386.8,2386.4,0.87389851]
[1726006502028,0.5762699,2386.8,2386.5,2.4640553]
[1726006502331,2.2739,2386.7,2386.4,0.87389851]
[1726006502535,0.55,2386.6,2386.5,0.98558314]
[1726006504446,2.8239,2386.6,2386.5,0.98558314]
[1726006504640,5.42026715,2386.6,2386.2,0.87389851]
[1726006504842,5.42026715,2386.6,2386.3,2.46518813]
[1726006504843,2.2739,2386.5,2386.3,2.46518813]
[1726006505135,2.2739,2386.5,2386.2,0.87389851]
[1726006505136,0.55,2386.4,2386.2,0.87389851]
[1726006505338,0.55,2386.4,2386.3,2.46530332]
[1726006506134,2.2739,2386.5,2386.3,2.46530332]
[1726006506302,2.2739,2386.7,2386.4,0.98612133]
[1726006506632,0.55,2386.6,2386.3,0.87389851]
[1726006506829,0.55,2386.6,2386.4,2.4646043]
[1726006507053,0.55,2386.6,2386.3,0.87389851]
[1726006507267,0.55,2386.6,2386.4,2.46462993]
[1726006507536,0.55,2386.6,2386.2,0.87389851]
[1726006507737,0.55,2386.6,2386.3,2.46459471]
[1726006507897,0.55,2386.6,2386.4,0.98583788]
[1726006508099,0.55,2386.6,2386.2,0.87389851]
[1726006508405,0.55,2386.6,2386.3,2.46464453]
[1726006508627,0.55,2386.6,2386.4,0.98585781]
[1726006508840,0.55,2386.6,2386.2,0.87389851]
[1726006509138,0.55,2386.6,2386.3,2.46450745]
[1726006509334,0.55,2386.6,2386.4,0.98580298]
[1726006509533,0.55,2386.6,2386.2,0.87389851]
[1726006509741,0.55,2386.6,2386.3,2.46445633]
[1726006510034,0.55,2386.6,2386.4,2.46446222]
[1726006510238,0.55,2386.6,2386.2,0.87389851]
[1726006510544,0.55,2386.6,2386.3,2.46415325]
[1726006510844,0.55,2386.6,2386.4,2.46405616]
[1726006511001,0.5762699,2386.8,2386.3,3.23149851]
[1726006511200,0.5762699,2386.8,2386.4,2.99498425]
[1726006511503,0.5762699,2386.8,2386.4,0.53102347]
[1726006512500,0.5762699,2386.8,2386.5,0.98550339]
[1726006512842,0.5762699,2386.8,2386.4,0.53102347]
[1726006513026,0.0262699,2386.8,2386.5,1.37010386]
[1726006513343,0.0262699,2386.8,2386.5,0.3846324]
[1726006513655,0.0262699,2386.8,2386.6,2.46347001]
[1726006513938,0.0262699,2386.8,2386.6,3.0]
[1726006514143,0.0262699,2386.8,2386.7,0.43423297]
[1726006514639,0.0262699,2386.8,2386.5,4.34232969]
[1726006514796,0.0262699,2386.8,2386.6,2.46334943]
[1726006515001,0.0262699,2386.8,2386.6,3.0]
[1726006515414,0.0262699,2386.8,2386.5,4.34232969]
[1726006515741,0.0262699,2386.8,2386.6,3.08268296]
[1726006515902,0.0262699,2386.8,2386.7,3.0]
[1726006516103,0.0262699,2386.8,2386.6,0.61941141]
[1726006519428,0.0262699,2386.8,2386.6,3.00401141]
[1726006519729,0.0262699,2386.8,2386.7,3.0]
[1726006519995,0.0262699,2386.8,2386.7,3.64724426]
[1726006522555,0.0262699,2386.8,2386.7,12.53025409]
[1726006522768,0.0262699,2387.2,2386.8,2.3846]
[1726006523056,0.0262699,2387.2,2387.1,7.21026041]
[1726006523221,0.0262699,2387.2,2387.1,14.27897173]
[1726006523426,0.0262699,2387.2,2387.1,14.70994674]
[1726006523640,0.0262699,2387.2,2387.1,9.45331132]
[1726006523857,0.0262699,2387.2,2387.1,4.52142421]
[1726006524029,0.0262699,2387.2,2387.1,1.52142421]
[1726006524534,0.0262699,2387.2,2387.1,5.47252582]
[1726006524756,0.0262699,2387.2,2387.1,4.52142421]
[1726006525069,0.0262699,2387.2,2387.0,3.08377073]
[1726006530830,2.4494,2387.1,2386.7,2.12266456]
[1726006531036,2.4494,2387.1,2386.6,0.08379006]
[1726006531764,2.4494,2387.0,2386.1,8.2645588]
[1726006531971,2.4494,2386.9,2386.2,0.08380615]
[1726006532165,0.55,2386.8,2386.2,0.7099662]
[1726006534188,0.55,2386.8,2386.2,3.7099662]
[1726006536660,7.3662699,2387.2,2386.2,3.7099662]
[1726006536661,0.0262699,2387.2,2386.5,3.95110161]
[1726006536859,0.0262699,2387.2,2386.6,3.47890042]
[1726006537171,0.0262699,2387.2,2386.7,7.31373226]
[1726006537541,0.0262699,2387.2,2386.9,3.95110161]
[1726006537804,0.0262699,2387.2,2387.0,0.08377826]
[1726006537980,0.0262699,2387.2,2387.0,0.48726625]
[1726006538301,0.0262699,2387.2,2387.0,0.08377826]
[1726006538596,0.0262699,2387.2,2387.0,3.08377826]
[1726006552084,0.0262699,2387.2,2387.1,2.3933]
[1726006552439,0.0262699,2387.2,2387.1,3.3763588]
[1726006552734,0.0262699,2387.7,2387.2,2.3933]
[1726006552932,0.0262699,2387.7,2387.6,3.95110161]
[1726006553177,0.0262699,2387.7,2387.6,5.01790129]
[1726006553337,0.0262699,2387.7,2387.6,8.01790129]
[1726006553531,0.0262699,2387.7,2387.6,9.29383232]
[1726006553978,0.0262699,2387.7,2387.6,9.29282754]
[1726006554146,0.0262699,2387.7,2387.6,8.31077352]
[1726006560097,0.0262699,2387.7,2387.6,10.60187352]
[1726006561392,0.0262699,2387.7,2387.6,11.58218717]
[1726006561921,0.0262699,2387.7,2387.6,10.60187352]
[1726006562774,0.0262699,2388.2,2387.6,10.60187352]
[1726006562974,0.0262699,2388.2,2387.7,4.06018735]
[1726006563172,0.0262699,2388.2,2388.0,3.95110161]
[1726006563387,0.0262699,2388.2,2388.1,3.0837375]
[1726006564963,0.0262699,2388.2,2387.9,3.08373537]
[1726006566802,2.5184699,2388.2,2387.9,3.08373537]
[1726006567006,2.5184699,2388.2,2387.9,3.0]
[1726006567209,2.5184699,2388.2,2387.7,3.08374525]
[1726006567507,2.5184699,2388.2,2387.8,0.08374751]
[1726006571647,2.5184699,2388.2,2387.7,3.0]
[1726006571855,2.3165,2387.9,2387.3,7.39]
[1726006572149,2.3165,2387.9,2387.0,11.42486916]
[1726006572306,0.55,2387.8,2387.0,11.42486916]
[1726006572508,0.55,2387.8,2387.1,2.36448692]
[1726006572741,2.3165,2387.9,2387.2,6.51506916]
[1726006572925,2.3165,2387.9,2387.3,0.08375842]
[1726006573113,2.3165,2387.9,2387.4,3.95110161]
[1726006573444,2.3165,2387.9,2387.5,0.08375838]
[1726006574112,2.3165,2387.9,2387.5,3.08375838]
[1726006574715,2.3165,2387.9,2387.5,3.78724438]
[1726006575316,2.3165,2388.1,2387.5,3.78724438]
[1726006576530,2.3165,2388.1,2387.6,0.08375104]
[1726006577525,2.3165,2388.1,2387.4,0.08375104]
[1726006578749,2.3165,2388.1,2387.4,4.03485265]
[1726006579026,2.3165,2388.1,2387.5,3.0]
[1726006579248,2.3165,2388.1,2387.6,0.78723631]
[1726006580961,2.3165,2388.1,2387.6,4.73833792]
[1726006581273,2.3165,2388.1,2387.7,3.0]
[1726006581484,2.3165,2388.1,2387.8,0.08374813]
[1726006581870,2.3165,2388.1,2387.6,3.95110161]
[1726006581871,2.3165,2388.1,2387.6,0.08374813]
[1726006582071,0.55,2388.0,2387.6,0.08374813]
[1726006582860,0.55,2388.0,2387.4,6.95110161]
[1726006582861,0.55,2388.0,2387.5,0.08375558]
[1726006583093,0.55,2388.0,2387.5,1.76588574]
[1726006583958,2.3165,2388.1,2387.5,1.76588574]
[1726006589158,0.0262699,2388.2,2388.0,3.95110161]
[1726006589463,0.0262699,2388.2,2388.1,3.47884538]
[1726006590254,0.0262699,2388.2,2388.1,3.08373522]
[1726006590564,0.0262699,2388.2,2387.9,3.08373523]
[1726006594713,0.0262699,2388.2,2388.1,2.375]
[1726006594887,0.0262699,2388.2,2388.1,5.45872898]
[1726006595092,0.0262699,2388.2,2388.1,6.69971204]
[1726006596528,0.0262699,2388.7,2388.1,6.69971204]
[1726006596529,0.0262699,2388.7,2388.1,10.01517925]
[1726006596694,0.0262699,2388.7,2388.3,3.95110161]
[1726006596876,0.0262699,2388.7,2388.4,3.08372282]
[1726006599406,0.0262699,2388.7,2388.2,3.08372771]
[1726006599710,0.0262699,2388.7,2388.3,0.08372771]
[1726006600277,2.4157,2388.6,2388.0,0.08372914]
[1726006600513,2.4157,2388.6,2388.0,1.11160195]
[1726006601519,2.4157,2388.6,2388.0,4.11160195]
[1726006603242,0.0262699,2388.7,2388.1,4.03483661]
[1726006603839,0.0262699,2388.7,2388.2,3.0]
[1726006604039,0.0262699,2388.7,2388.3,0.08372958]
[1726006604204,0.0262699,2388.7,2388.3,0.7872127]
[1726006604405,0.5762699,2388.7,2388.3,0.7872127]
[1726006604830,2.4194,2388.6,2388.3,0.08372958]
[1726006605245,2.4194,2388.6,2388.1,0.0837319]
[1726006606817,2.4194,2388.6,2388.0,3.0]
[1726006607046,2.4194,2388.4,2387.9,0.08373502]
[1726006607253,0.55,2388.3,2387.9,0.08373502]
[1726006607811,0.55,2388.3,2387.8,0.0837465]
[1726006608213,0.55,2388.3,2387.8,3.0837465]
[1726006609127,0.55,2388.3,2387.7,0.08374899]
[1726006609345,0.55,2388.3,2387.7,1.62123217]
[1726006609546,0.55,2388.3,2387.8,0.08374899]
[1726006612550,2.4194,2388.4,2387.8,0.08374899]
[1726006613143,0.0262699,2388.7,2388.1,3.95110161]
[1726006613339,0.0262699,2388.7,2388.5,3.95110161]
[1726006613654,0.0262699,2388.7,2388.6,0.08371874]
[1726006615483,0.0262699,2388.7,2388.6,2.3516]
[1726006615668,0.0262699,2389.1,2388.6,5.43531328]
[1726006615977,0.0262699,2389.1,2388.7,4.58137177]
[1726006616180,0.0262699,2389.1,2388.8,0.0837101]
[1726006616381,0.0262699,2389.1,2388.7,4.58137177]
[1726006616552,0.0262699,2389.1,2388.5,3.95110161]
[1726006616880,0.0262699,2389.1,2388.6,0.08371977]
[1726006617077,0.5762699,2389.1,2388.6,0.08371977]
[1726006633018,2.4666,2389.0,2388.3,3.0]
[1726006633323,2.4666,2388.8,2388.4,0.08371938]
[1726006635779,2.4666,2388.8,2388.3,0.08372842]
[1726006636599,2.7982167,2388.8,2388.3,0.08372842]
[1726006637332,2.4666,2388.8,2388.3,0.08372842]
[1726006637485,2.4666,2388.8,2388.3,4.03483003]
[1726006641162,2.4666,2388.8,2388.3,0.08372842]
[1726006647931,2.4706,2388.6,2388.1,3.0]
[1726006648149,2.4706,2388.4,2388.2,0.08373633]
[1726006648384,2.4706,2388.4,2388.1,0.08373714]
[1726006648598,2.4706,2388.7,2388.2,0.08373714]
[1726006652382,2.4706,2389.0,2388.3,2.3324]
[1726006652696,0.0262699,2389.1,2388.3,2.3324]
[1726006652697,0.0262699,2389.1,2388.4,1.30447142]
[1726006652865,0.0262699,2389.1,2388.5,0.97912667]
[1726006653049,0.0262699,2389.1,2388.6,0.08371374]
[1726006653246,0.0262699,2389.1,2388.6,0.51415915]
[1726006653452,0.0262699,2389.1,2388.7,3.94422582]
[1726006653695,0.0262699,2389.1,2388.8,3.08370911]
[1726006654065,0.0262699,2389.1,2388.8,0.08370911]
[1726006654248,0.0262699,2389.1,2388.8,0.9020921]
[1726006657059,2.4968699,2389.1,2388.8,0.9020921]
[1726006658057,2.4968699,2389.1,2388.7,3.0]
[1726006658260,2.4968699,2389.1,2388.7,0.0837177]
[1726006659321,2.4968699,2389.1,2388.5,0.08371717]
[1726006661112,2.4968699,2389.1,2388.4,4.70999175]
[1726006661317,2.4968699,2389.1,2388.4,3.24161371]
[1726006661612,2.4968699,2389.1,2388.5,1.15005111]
[1726006661975,2.4968699,2389.1,2388.6,0.08371777]
[1726006665079,0.0262699,2389.1,2388.6,2.45941777]
[1726006665281,0.0262699,2389.1,2388.6,5.45941777]
[1726006665529,0.0262699,2389.1,2388.7,0.80805311]
[1726006665710,0.0262699,2389.1,2388.7,3.80805311]
[1726006666022,0.0262699,2389.1,2388.7,3.89177047]
[1726006670393,0.0262699,2389.1,2388.7,0.80805311]
[1726006670617,0.0262699,2389.1,2388.6,3.0837174]
[1726006672057,2.4574,2389.0,2388.6,3.0837174]
[1726006673322,2.4574,2389.0,2388.7,3.0]
[1726006673721,2.4574,2389.0,2388.6,0.0837174]
[1726006676861,2.4574,2389.0,2388.6,3.0837174]
[1726006677928,2.4574,2389.0,2388.6,0.0837174]
[1726006678155,0.0262699,2389.1,2388.7,2.2583]
[1726006678348,2.5017699,2389.1,2388.7,0.08371027]
[1726006679590,2.5017699,2389.1,2388.5,4.55437336]
[1726006679782,2.4755,2388.9,2388.6,3.0]
[1726006679946,2.4755,2388.9,2388.5,0.08371736]
[1726006680152,2.4755,2388.7,2388.4,0.08372548]
[1726006681350,2.4755,2388.7,2388.4,3.08372548]
[1726006681748,2.72305,2388.7,2388.3,1.47093798]
[1726006681964,2.72305,2388.7,2388.3,0.08373193]
[1726006682170,2.72305,2388.7,2388.1,1.55507992]
[1726006682447,2.4755,2388.5,2388.1,1.55507992]
[1726006683450,2.4755,2388.5,2388.1,0.08373212]
[1726006685882,2.4755,2388.5,2388.0,1.47119305]
[1726006686081,2.4755,2388.5,2388.0,1.55492953]
[1726006686324,2.4755,2388.3,2388.0,0.08373648]
[1726006691835,2.4755,2388.3,2387.9,0.08374198]
[1726006692195,2.4755,2388.3,2388.0,0.98046033]
[1726006692391,2.4755,2388.3,2388.0,0.64039959]
[1726006693222,2.4755,2388.3,2387.9,0.08374198]
[1726006693898,2.4755,2388.3,2387.8,4.47089625]
[1726006694239,2.4755,2388.3,2387.9,0.98039989]
[1726006694422,2.4755,2388.3,2387.7,5.33979359]
[1726006694625,2.4755,2388.3,2387.8,0.98035959]
[1726006694824,2.4755,2388.3,2387.7,7.53859427]
[1726006695144,2.4755,2388.3,2387.8,0.98036381]
[1726006695314,2.4656,2388.1,2387.8,0.98036381]
[1726006695709,2.4656,2388.1,2387.7,3.08374506]
[1726006695893,2.4656,2388.1,2387.7,0.08374506]
[1726006696094,2.4656,2388.1,2387.7,1.49595662]
[1726006696411,2.4656,2388.1,2387.6,3.0]
[1726006696815,2.4656,2388.1,2387.5,5.33946795]
[1726006697021,2.4656,2388.1,2387.6,0.98024713]
[1726006697347,2.4656,2388.1,2387.6,1.61221864]
[1726006697503,2.4656,2388.1,2387.6,3.63197151]
[1726006697700,2.4656,2388.1,2387.6,0.63197151]
[1726006698342,2.4656,2388.1,2387.7,0.08375371]
[1726006701355,2.4656,2388.3,2387.7,0.08375371]
[1726006701560,0.55,2388.2,2387.7,0.08375371]
[1726006702721,2.4656,2388.6,2387.8,7.40558619]
[1726006702921,2.4656,2388.6,2387.9,1.0633746]
[1726006703125,2.4656,2388.6,2388.0,0.84689608]
[1726006703338,2.4656,2388.6,2388.1,0.08373779]
[1726006704036,0.55,2388.5,2388.1,0.08373779]
[1726006704622,0.55,2388.5,2388.2,2.4808]
[1726006705039,2.4656,2388.8,2388.3,0.08373779]
[1726006705223,2.4656,2388.8,2388.3,3.33181779]
[1726006705624,0.0262699,2389.1,2388.5,2.4808]
[1726006705870,0.0262699,2389.1,2388.6,4.02886694]
[1726006706167,0.0262699,2389.1,2388.7,5.4808]
[1726006706323,0.0262699,2389.1,2388.8,1.03467429]
[1726006706525,2.4918699,2389.1,2388.8,1.03467429]
[1726006706750,0.0262699,2389.1,2388.8,0.0837076]
[1726006707475,0.0262699,2389.1,2388.6,0.08371121]
[1726006707636,0.0262699,2389.1,2388.6,1.121567]
[1726006709266,0.0262699,2389.1,2388.7,2.4401]
[1726006709457,0.0262699,2389.1,2388.8,0.08370382]
[1726006709926,0.0262699,2389.1,2388.8,3.08370382]
[1726006715738,2.3847699,2389.1,2388.8,3.08370382]
[1726006716069,2.3847699,2389.1,2388.7,0.08371475]
[1726006716370,2.3847699,2389.1,2388.6,0.08371416]
[1726006716553,0.55,2389.0,2388.5,3.08372216]
[1726006716726,0.55,2389.0,2388.6,3.0]
[1726006716927,0.55,2389.0,2388.4,3.08372506]
[1726006720481,0.55,2389.0,2387.9,13.08889734]
[1726006720482,2.3585,2388.6,2387.7,8.25889734]
[1726006720688,8.13166938,2388.7,2387.8,0.08374335]
[1726006720689,6.30364938,2388.5,2387.8,0.08374335]
[1726006720834,0.55,2388.4,2387.8,0.08374335]
[1726006721743,0.55,2388.4,2387.8,3.08374335]
[1726006722442,0.55,2388.4,2387.8,0.08374335]
[1726006722672,0.55,2388.4,2387.8,1.08487629]
[1726006723537,0.55,2388.4,2387.8,4.08487629]
[1726006728171,2.4629,2388.3,2387.8,4.08487629]
[1726006728352,2.4629,2388.3,2387.8,1.08487629]
[1726006731277,2.4629,2388.3,2387.9,1.82105701]
[1726006731608,2.4629,2388.3,2388.0,0.08374352]
[1726006731813,2.4629,2388.3,2387.9,0.08374355]
[1726006731998,0.55,2388.2,2387.9,0.08374355]
[1726006733019,0.55,2388.2,2387.8,0.08374716]
[1726006733307,0.55,2388.2,2387.8,0.49911185]
[1726006736087,0.55,2388.3,2387.8,0.49911185]
[1726006736286,2.4629,2388.2,2387.8,0.08374716]
[1726006736610,2.70919,2388.2,2387.6,0.08374714]